bitfinex-derivatives/quotes_ETHF0:USTF0_20250817
["timestamp","ask_amount","ask_price","bid_price","bid_amount"]
[1755429158226,0.0219,4558.8,4558.1,0.46223152]
[1755429158420,3.2078,4558.2,4557.1,0.09874593]
[1755429158720,0.21392552,4558.1,4557.3,0.2397]
[1755429158919,0.21392552,4558.0,4557.9,0.245]
[1755429159321,0.21392552,4558.0,4557.9,1.0556]
[1755429159518,0.21392552,4558.0,4557.9,1.4196]
[1755429159717,3.2078,4558.2,4558.0,0.8487]
[1755429159923,0.21393698,4558.1,4558.0,1.4196]
[1755429160324,3.2078,4558.2,4558.1,1.4196]
[1755429161928,3.2078,4558.2,4558.1,1.0556]
[1755429162123,3.2078,4558.2,4558.1,1.4196]
[1755429165417,3.2078,4558.2,4558.1,1.0556]
[1755429165717,3.2078,4558.2,4558.1,1.4196]
[1755429168528,0.7622,4559.4,4559.3,1.4405]
[1755429168825,0.9819414,4559.4,4559.3,1.4405]
[1755429169221,1.2370414,4559.4,4559.3,1.0603]
[1755429169428,1.2370414,4559.4,4559.3,0.6454]
[1755429169631,1.0173,4559.4,4559.3,0.6454]
[1755429169825,0.9819234,4559.4,4559.3,1.4405]
[1755429170029,1.2370234,4559.4,4559.3,1.0603]
[1755429170329,1.2370234,4559.4,4559.3,0.8134]
[1755429170526,1.2370225,4559.4,4559.3,0.8134]
[1755429171422,0.9819225,4559.4,4559.3,1.4405]
[1755429171828,0.2197225,4559.4,4559.3,1.4405]
[1755429172032,3.2078,4559.5,4559.3,1.4405]
[1755429172231,3.2078,4559.5,4559.4,1.4405]
[1755429172423,3.669185,4559.5,4559.4,1.4405]
[1755429174429,3.4495,4559.5,4559.4,1.4405]
[1755429174828,3.6095,4559.5,4559.4,1.4405]
[1755429175026,3.97,4559.5,4559.4,1.4405]
[1755429177531,0.7622,4559.5,4559.4,1.4405]
[1755429178934,0.2417,4559.5,4559.4,1.4405]
[1755429180728,0.3605,4559.8,4559.4,1.4405]
[1755429180938,0.46126381,4559.7,4559.6,1.4405]
[1755429181231,0.98176381,4559.7,4559.6,1.4405]
[1755429181434,0.7622,4559.7,4559.6,1.4405]
[1755429181831,3.2078,4560.2,4560.1,0.5813]
[1755429182030,3.42731896,4560.2,4560.1,1.4405]
[1755429182330,0.3605,4560.6,4560.1,1.4405]
[1755429182536,0.98169318,4560.5,4560.4,0.5813]
[1755429182730,0.98169318,4560.5,4560.4,1.2015]
[1755429182929,0.98169318,4560.5,4560.4,1.4405]
[1755429183132,0.7622,4560.5,4560.4,1.4405]
[1755429184234,1.0173,4560.5,4560.4,1.4405]
[1755429185631,0.7622,4560.5,4560.4,1.4405]
[1755429188337,3.2078,4560.7,4560.6,1.4405]
[1755429188536,3.97,4560.7,4560.6,1.4405]
[1755429190345,4.2251,4560.7,4560.6,1.0603]
[1755429190837,3.97,4560.7,4560.6,1.4405]
[1755429192641,3.2078,4560.7,4560.6,1.4405]
[1755429192843,3.2078,4561.3,4560.6,0.9834]
[1755429193138,3.97,4561.3,4561.2,1.4405]
[1755429193335,3.4495,4561.3,4561.2,1.4405]
[1755429193730,3.2078,4561.3,4561.2,1.4405]
[1755429194241,3.2078,4561.8,4561.7,1.4405]
[1755429194441,3.6095,4561.8,4561.7,1.4405]
[1755429194635,3.97,4561.8,4561.7,1.4405]
[1755429198444,3.4495,4561.8,4561.7,1.61833859]
[1755429198638,3.2078,4561.8,4561.7,1.61833859]
[1755429199347,3.9914,4561.8,4561.7,1.4405]
[1755429200941,3.2078,4562.4,4561.7,1.4405]
[1755429201247,3.6305,4562.4,4562.3,1.4417]
[1755429201549,3.8725,4562.4,4562.3,0.8156]
[1755429201844,4.2334,4562.4,4562.3,0.4834]
[1755429202342,4.2334,4562.4,4562.3,0.8156]
[1755429204544,3.6305,4562.4,4562.0,0.6101]
[1755429204741,3.9914,4562.4,4562.3,1.4417]
[1755429206041,3.4591,4562.4,4562.3,0.8156]
[1755429206246,3.9914,4562.4,4562.3,0.8156]
[1755429206546,4.2334,4562.4,4562.3,0.8156]
[1755429206845,4.2334,4562.4,4562.3,0.4834]
[1755429207645,0.0219,4562.3,4561.6,3.6912]
[1755429207851,1.0256,4561.7,4561.6,1.0657]
[1755429208543,1.0256,4561.7,4561.6,0.4834]
[1755429209049,0.7836,4561.6,4561.5,1.4417]
[1755429209840,0.2513,4561.6,4561.5,1.4417]
[1755429210051,0.3609,4561.9,4561.5,1.4417]
[1755429210249,0.4227,4561.7,4561.6,1.4417]
[1755429210452,0.7836,4561.7,4561.6,1.4417]
[1755429211144,0.3609,4562.3,4561.6,0.9583]
[1755429211347,0.6122,4561.8,4561.7,1.4417]
[1755429211653,0.7836,4561.8,4561.0,3.38644496]
[1755429211852,0.1714,4561.3,4561.2,1.0657]
[1755429212054,0.7836,4561.3,4561.2,1.4417]
[1755429214148,3.9914,4562.4,4562.3,0.3322]
[1755429214351,4.44859311,4562.4,4562.3,0.8156]
[1755429214754,4.20659311,4562.4,4561.8,0.4834]
[1755429215054,3.9914,4562.4,4562.3,1.4417]
[1755429215360,3.2078,4562.4,4562.3,1.4417]
[1755429216350,3.9914,4562.4,4562.3,1.4417]
[1755429219165,3.4591,4562.4,4562.3,1.4417]
[1755429219358,3.9914,4562.4,4562.3,1.4417]
[1755429220962,4.2334,4562.4,4562.3,1.4417]
[1755429221766,3.9914,4562.4,4562.3,1.4417]
[1755429222262,3.2078,4562.4,4562.3,1.4417]
[1755429222867,3.4591,4562.4,4562.3,1.4417]
[1755429223069,3.82,4562.4,4562.3,1.4417]
[1755429223366,3.9914,4562.4,4562.3,1.4417]
[1755429225669,4.2334,4562.4,4562.0,0.4834]
[1755429225858,0.4227,4562.2,4562.1,0.4834]
[1755429226058,1.0256,4562.2,4562.1,0.4834]
[1755429226464,1.0256,4562.2,4562.1,0.8156]
[1755429226659,0.3609,4562.1,4561.2,0.8594]
[1755429226867,0.3609,4562.1,4561.1,1.6]
[1755429227061,0.2513,4561.4,4561.3,0.7926]
[1755429227269,0.6122,4561.4,4561.3,1.1924]
[1755429227467,0.7836,4561.4,4561.3,1.1924]
[1755429227666,0.7836,4561.4,4561.3,1.4349]
[1755429228567,0.4227,4561.4,4561.3,1.4349]
[1755429228760,0.792,4561.4,4561.3,1.4349]
[1755429228965,0.4227,4561.4,4561.3,1.4349]
[1755429229163,0.2513,4561.4,4561.3,1.4349]
[1755429229767,0.3693,4562.3,4561.4,0.8521]
[1755429229967,0.3693,4562.3,4561.0,3.40834496]
[1755429229968,0.783,4562.3,4562.2,1.4405]
[1755429230167,0.99670651,4562.3,4562.2,1.4405]
[1755429232874,0.62740651,4562.3,4562.2,1.4405]
[1755429234075,0.21370651,4562.3,4562.2,1.4405]
[1755429234271,0.99670651,4562.3,4562.2,1.4405]
[1755429234880,0.783,4562.3,4562.2,1.4405]
[1755429235177,0.99670696,4562.3,4562.2,1.4405]
[1755429235573,0.99671451,4562.3,4562.2,1.4405]
[1755429235877,1.25581446,4562.3,4562.2,0.8232]
[1755429236079,0.62741446,4562.3,4562.0,0.4839]
[1755429236280,1.0421,4562.2,4562.1,0.8232]
[1755429236980,0.783,4562.2,4562.1,1.0723]
[1755429237182,0.783,4562.2,4562.1,1.4405]
[1755429238078,1.0421,4562.2,4562.1,1.4405]
[1755429238375,0.783,4562.2,4562.1,1.4405]
[1755429238579,3.2078,4562.4,4562.1,1.4405]
[1755429238783,0.2137283,4562.3,4562.2,1.4405]
[1755429238978,0.4565283,4562.3,4562.2,1.4405]
[1755429239178,0.6121,4562.3,4562.2,1.4405]
[1755429239482,0.2428,4562.3,4562.2,1.4405]
[1755429239681,3.2078,4562.4,4562.3,1.4405]
[1755429239984,3.4506,4562.4,4562.3,1.4405]
[1755429240174,3.8199,4562.4,4562.3,1.4405]
[1755429240380,3.2078,4562.4,4562.3,1.4405]
[1755429242080,0.3693,4562.9,4562.3,1.4405]
[1755429242288,0.21374735,4562.8,4562.7,0.5884]
[1755429242585,0.4137,4562.9,4562.8,1.4405]
[1755429242774,0.98618035,4562.9,4562.8,1.4405]
[1755429243583,0.98619064,4562.9,4562.8,1.4405]
[1755429244676,3.2078,4563.6,4562.8,1.4405]
[1755429244885,0.98620573,4563.5,4563.4,1.4405]
[1755429245786,1.24530573,4563.5,4563.4,1.0723]
[1755429245981,1.24530573,4563.5,4563.4,0.8232]
[1755429250991,1.24530573,4563.5,4563.4,1.4405]
[1755429251592,0.98620573,4563.5,4563.4,1.4405]
[1755429251986,1.24530573,4563.5,4563.4,1.4405]
[1755429252193,1.24530573,4563.5,4563.4,1.0723]
[1755429252589,0.986006,4563.5,4562.7,0.4839]
[1755429252790,0.783,4563.0,4562.9,1.4405]
[1755429253199,1.0421,4563.0,4562.9,1.4405]
[1755429253687,0.783,4563.0,4562.9,0.8232]
[1755429254092,1.0421,4563.0,4562.9,0.8232]
[1755429254994,1.0421,4563.0,4562.9,1.0723]
[1755429255192,1.0421,4563.0,4562.9,1.4405]
[1755429255688,1.0421,4563.0,4562.9,0.8232]
[1755429256397,3.2078,4563.1,4562.9,0.8232]
[1755429256696,3.9908,4563.1,4563.0,1.0723]
[1755429256888,3.9908,4563.1,4563.0,1.4405]
[1755429257794,3.9908,4563.1,4563.0,1.0723]
[1755429258095,4.2367,4563.1,4563.0,1.0723]
[1755429259493,4.2367,4563.1,4563.0,1.4438]
[1755429262195,3.9908,4563.1,4563.0,1.4438]
[1755429262597,4.2367,4563.1,4563.0,1.4438]
[1755429263201,3.9908,4563.1,4563.0,1.4438]
[1755429263700,3.2078,4563.1,4563.0,1.4438]
[1755429264293,3.5674,4563.1,4563.0,1.4438]
[1755429264492,3.9883,4563.1,4563.0,1.4438]
[1755429268300,4.18525876,4563.1,4563.0,1.4438]
[1755429270699,3.9883,4563.1,4563.0,1.4438]
[1755429270999,0.19703188,4563.1,4563.0,1.4438]
[1755429271199,0.19703154,4563.1,4563.0,0.5884]
[1755429271902,0.19703154,4563.1,4563.0,1.4422]
[1755429272595,0.55663154,4563.1,4563.0,1.4422]
[1755429272902,0.80983154,4563.1,4563.0,1.4422]
[1755429274697,0.3596,4563.4,4563.0,0.5884]
[1755429274900,0.19713302,4563.3,4563.2,1.4141]
[1755429275495,0.97763302,4563.3,4563.2,1.4141]
[1755429275899,1.22353302,4563.3,4563.2,1.4141]
[1755429277301,0.97763302,4563.3,4563.2,1.4141]
[1755429278396,0.61803302,4563.3,4562.3,0.17224555]
[1755429278602,0.4209,4563.3,4563.2,0.8001]
[1755429278898,0.61800974,4563.3,4563.2,0.8001]
[1755429279101,1.22350974,4563.3,4563.2,0.8001]
[1755429279503,0.3815,4563.2,4561.9,2.46152616]
[1755429279696,3.461,4562.0,4561.9,1.68272616]
[1755429280000,3.461,4562.0,4560.2,0.5628]
[1755429280001,4.23842834,4562.0,4560.2,0.5628]
[1755429280201,3.2078,4560.3,4560.2,0.5603]
[1755429280391,3.2078,4560.3,4559.7,0.7976]
[1755429280596,3.2078,4559.8,4559.7,1.1691]
[1755429280795,3.55039762,4559.8,4559.7,1.4141]
[1755429283296,3.2078,4559.8,4559.7,1.4141]
[1755429286899,3.2078,4559.8,4559.1,0.245]
[1755429287104,3.2078,4559.2,4559.1,0.5603]
[1755429287699,3.2078,4559.2,4559.1,1.4159]
[1755429288699,3.2078,4559.2,4559.1,1.58773509]
[1755429289308,3.2078,4559.2,4559.1,1.4159]
[1755429290906,3.2078,4559.2,4559.1,1.5890766]
[1755429291502,2.8179,4559.2,4559.1,1.5890766]
[1755429292404,0.5195,4560.2,4560.1,0.1727]
[1755429292606,1.45811645,4560.2,4560.1,1.425]
[1755429292802,1.71731645,4560.2,4560.1,1.425]
[1755429293001,1.71731645,4560.2,4560.1,1.0721]
[1755429293696,1.71731645,4560.2,4560.1,0.8369]
[1755429294800,1.71729142,4560.2,4560.1,0.8369]
[1755429296110,0.29409142,4560.2,4560.1,1.425]
[1755429296601,0.7577,4560.9,4560.8,0.1727]
[1755429296907,1.458071,4560.9,4560.8,1.425]
[1755429297810,3.2078,4561.0,4560.8,1.425]
[1755429298007,0.29410442,4560.9,4560.8,0.5694]
[1755429298610,0.29410442,4560.9,4560.8,1.425]
[1755429299004,3.2078,4561.0,4560.8,1.425]
[1755429299311,3.2078,4561.0,4560.9,1.425]
[1755429299610,3.446,4561.0,4560.9,1.425]
[1755429299804,4.3718,4561.0,4560.9,1.425]
[1755429300006,3.7712,4561.0,4560.6,0.3529]
[1755429300306,1.164,4560.9,4560.8,1.425]
[1755429300503,3.8077,4561.0,4560.9,1.425]
[1755429300711,3.9751,4561.0,4560.9,1.425]
[1755429300904,4.1329,4561.0,4560.9,1.425]
[1755429301105,4.3718,4561.0,4560.9,1.425]
[1755429302310,4.63080101,4561.0,4560.9,1.425]
[1755429302505,4.89000101,4561.0,4560.9,1.425]
[1755429303110,4.63080101,4561.0,4560.9,1.425]
[1755429303308,4.23410101,4561.0,4560.9,1.425]
[1755429303511,4.39190101,4561.0,4560.9,1.425]
[1755429303712,4.63080101,4561.0,4560.9,1.425]
[1755429304407,4.63080101,4561.0,4560.9,0.2458]
[1755429304613,0.3252,4560.5,4560.4,1.0721]
[1755429304809,1.164,4560.5,4560.4,1.425]
[1755429305006,0.9251,4560.5,4560.4,1.425]
[1755429305210,0.3617,4560.8,4560.7,0.5694]
[1755429305406,0.8593152,4560.8,4560.7,1.425]
[1755429305712,0.2594152,4560.8,4560.7,1.425]
[1755429306111,0.5999,4560.9,4560.8,1.425]
[1755429306307,0.85934034,4560.9,4560.8,1.425]
[1755429306509,0.25962089,4560.9,4560.8,1.425]
[1755429307310,1.42362089,4560.9,4560.8,1.425]
[1755429308614,1.68282089,4560.9,4560.8,1.425]
[1755429311320,1.68282089,4560.9,4560.8,0.2458]
[1755429311512,0.2389,4560.3,4559.8,0.2569]
[1755429311814,1.164,4559.9,4559.8,0.1615]
[1755429312022,1.68363472,4559.9,4559.8,0.4184]
[1755429312213,1.68363472,4559.9,4559.8,0.8369]
[1755429312719,1.68363472,4559.9,4559.8,1.425]
[1755429313315,1.42443472,4559.9,4559.8,1.425]
[1755429315215,1.42639018,4559.9,4559.8,1.425]
[1755429317722,0.26239018,4559.9,4559.8,1.425]
[1755429318111,3.2078,4560.8,4559.8,4.425]
[1755429318318,0.6542455,4560.7,4560.6,0.5676]
[1755429318512,0.6542455,4560.7,4560.6,1.4485]
[1755429318717,1.6786455,4560.7,4560.6,1.4485]
[1755429320723,1.4340455,4560.7,4560.6,1.4485]
[1755429321125,1.2691455,4560.7,4560.6,1.4485]
[1755429321326,0.6149,4561.2,4560.6,1.4485]
[1755429321523,1.1822,4561.2,4561.1,0.5676]
[1755429321715,1.1822,4561.2,4561.1,1.03559171]
[1755429321716,1.4268,4561.2,4561.1,1.03559171]
[1755429325030,1.4268,4561.2,4561.1,0.65159171]
[1755429325528,0.5673,4561.0,4560.9,0.409]
[1755429325719,1.4268,4561.0,4560.9,0.409]
[1755429325921,1.4268,4561.0,4560.9,1.0407]
[1755429326725,0.8595,4560.9,4560.1,0.8809]
[1755429326926,0.8119,4560.8,4560.7,0.1606]
[1755429327122,1.4268,4560.8,4560.7,1.2]
[1755429329428,1.4268,4560.8,4560.7,1.4485]
[1755429329633,1.0173,4560.8,4560.7,1.4485]
[1755429331326,1.2619,4560.8,4560.7,1.4485]
[1755429332534,1.4268,4560.8,4560.7,1.4485]
[1755429333335,1.4268,4560.8,4560.7,1.2]
[1755429337335,1.4268,4560.8,4560.7,0.6567]
[1755429337634,1.64748622,4560.8,4560.7,0.6567]
[1755429337937,0.5673,4560.2,4560.1,0.816]
[1755429338137,1.4268,4560.2,4560.1,1.4485]
[1755429338437,1.1822,4560.2,4560.1,1.4485]
[1755429338638,1.4268,4560.2,4560.1,1.4485]
[1755429339334,0.4024,4559.6,4559.5,0.8161]
[1755429339535,0.2528,4559.6,4559.5,1.4485]
[1755429339733,0.2528,4559.8,4559.7,0.5676]
[1755429339938,0.2528,4560.0,4559.8,0.8809]
[1755429340138,0.2528,4560.0,4559.9,1.4485]
[1755429340739,0.4161,4560.0,4559.9,1.4485]
[1755429342737,1.0173,4560.0,4559.9,1.4485]
[1755429342930,1.4268,4560.0,4559.9,1.4485]
[1755429343443,0.6552,4560.0,4559.9,1.4485]
[1755429344032,1.1822,4560.0,4559.9,1.4485]
[1755429344238,1.4268,4560.0,4559.9,1.2]
[1755429345046,1.4268,4560.0,4559.9,0.6317]
[1755429345237,1.4268,4560.0,4559.3,3.2078]
[1755429345438,1.0173,4559.5,4559.4,1.4485]
[1755429345746,1.4268,4559.5,4559.4,1.4485]
[1755429345944,1.0173,4559.5,4559.4,1.4485]
[1755429346844,0.6552,4559.5,4559.4,1.4485]
[1755429347039,0.4161,4559.5,4559.4,1.4485]
[1755429350539,4.0309,4560.3,4560.2,0.5837]
[1755429350742,4.63378665,4560.3,4560.2,1.4702]
[1755429350948,4.07878665,4560.3,4560.2,1.4702]
[1755429351341,3.83427109,4560.3,4560.2,1.4702]
[1755429351944,4.46287109,4560.3,4560.2,1.4702]
[1755429353850,4.87987109,4560.3,4560.2,1.4702]
[1755429359351,4.63377109,4560.3,4560.2,1.4702]
[1755429359651,4.87987109,4560.3,4560.2,1.4702]
[1755429360347,4.87993008,4560.3,4560.2,1.4702]
[1755429360652,0.21883008,4560.3,4560.2,1.4702]
[1755429360954,1.0363,4560.6,4560.5,1.4702]
[1755429361148,1.25511799,4560.6,4560.5,1.4702]
[1755429361344,1.50121799,4560.6,4560.5,1.4702]
[1755429361653,1.67211799,4560.6,4560.5,1.4702]
[1755429361951,1.67211799,4560.6,4560.5,0.2578]
[1755429362357,0.79741799,4560.6,4560.3,0.2578]
[1755429362554,0.5786,4560.4,4560.3,0.5331]
[1755429362852,1.4533,4560.4,4560.3,0.5331]
[1755429363052,1.4533,4560.4,4560.3,0.7909]
[1755429363747,1.4533,4560.4,4560.3,1.4702]
[1755429364351,1.2072,4560.4,4560.3,1.4702]
[1755429364654,1.0363,4560.4,4560.3,1.4702]
[1755429364846,0.2445,4560.7,4560.6,0.1608]
[1755429365049,0.76617788,4560.7,4560.6,1.2138]
[1755429365250,1.42767788,4560.7,4560.6,1.4702]
[1755429365655,1.67217788,4560.7,4560.6,1.4702]
[1755429368555,1.4533,4560.7,4560.6,1.4702]
[1755429368753,0.76621896,4560.7,4560.6,1.4702]
[1755429368956,1.42611896,4560.7,4560.6,1.4702]
[1755429369155,1.67221896,4560.7,4560.6,1.4702]
[1755429372555,0.87111896,4560.7,4560.6,1.4702]
[1755429373259,1.25521896,4560.7,4560.6,1.4702]
[1755429373460,1.0363,4560.7,4560.6,1.4702]
[1755429374362,1.2824,4560.7,4560.6,1.4702]
[1755429374563,1.4533,4560.7,4560.6,1.4702]
[1755429377959,1.4533,4560.7,4560.0,3.2078]
[1755429377960,1.2072,4560.7,4560.0,3.2078]
[1755429378166,1.4818,4560.6,4560.1,0.514]
[1755429378363,1.4818,4560.5,4560.4,0.8423]
[1755429378567,1.4818,4560.5,4560.4,0.2576]
[1755429378766,0.5931,4560.5,4560.2,0.2558]
[1755429378975,0.5931,4560.3,4560.2,1.1994]
[1755429379273,1.4818,4560.3,4560.2,1.1994]
[1755429379971,1.4818,4560.2,4560.1,0.8423]
[1755429380566,1.4818,4560.2,4560.1,1.1994]
[1755429380972,0.9698,4560.1,4560.0,0.4199]
[1755429381570,1.4818,4560.1,4560.0,1.1994]
[1755429381872,1.4818,4560.1,4560.0,1.4576]
[1755429386573,1.4818,4560.1,4560.0,1.1994]
[1755429387778,1.4818,4560.1,4560.0,1.4576]
[1755429389374,0.6827,4560.1,4560.0,1.4576]
[1755429389675,1.0594,4560.6,4560.5,1.4576]
[1755429389881,1.27760992,4560.6,4560.5,1.4576]
[1755429390076,1.70000992,4560.6,4560.5,1.4576]
[1755429390277,1.70000992,4560.6,4560.5,0.4199]
[1755429390482,1.70000992,4560.6,4560.5,0.2558]
[1755429390982,1.70000992,4560.6,4560.3,20.446]
[1755429391176,0.5931,4560.4,4560.3,20.7018]
[1755429391376,1.4818,4560.4,4560.3,21.223]
[1755429391683,1.70001077,4560.4,4560.3,20.7018]
[1755429392383,1.70001077,4560.4,4560.3,0.2558]
[1755429392679,1.4818,4560.3,4560.2,0.2558]
[1755429392982,1.4818,4560.3,4560.1,20.438]
[1755429393187,0.5931,4560.3,4560.1,20.438]
[1755429393484,1.4818,4560.2,4560.1,21.4726]
[1755429394084,1.4818,4560.2,4560.1,21.6374]
[1755429395276,1.4818,4560.2,4560.1,20.438]
[1755429395477,1.4818,4560.2,4560.1,21.0509]
[1755429395776,1.4818,4560.2,4560.1,21.215]
[1755429396183,1.4818,4560.2,4560.1,21.4726]
[1755429396485,1.4818,4560.2,4560.1,21.6374]
[1755429396779,1.4818,4560.2,4560.1,21.1155]
[1755429397179,1.4818,4560.2,4560.1,20.438]
[1755429398184,1.7000133,4560.2,4560.1,20.6938]
[1755429399486,1.7000133,4560.2,4560.1,20.438]
[1755429399680,1.7000133,4560.2,4560.1,20.6938]
[1755429399875,1.7000133,4560.2,4560.1,21.6374]
[1755429400284,1.7000133,4560.2,4560.1,21.8956]
[1755429400484,1.7000133,4560.2,4560.1,21.6374]
[1755429402187,1.7000133,4560.2,4560.1,21.8956]
[1755429403188,1.7000133,4560.2,4560.1,21.6374]
[1755429403384,1.7000133,4560.2,4560.1,21.8956]
[1755429404684,1.4818,4560.2,4560.1,21.8956]
[1755429404990,1.69996427,4560.2,4560.1,21.8956]
[1755429406687,1.69996427,4560.2,4560.1,21.6374]
[1755429406988,1.69996427,4560.2,4560.1,21.8956]
[1755429407286,1.69996427,4560.2,4560.1,21.6374]
[1755429407480,1.69996427,4560.2,4559.4,0.2388]
[1755429407481,0.81126427,4560.2,4559.4,0.2388]
[1755429407683,0.2588,4559.9,4559.6,0.2364]
[1755429407887,1.4428,4559.7,4559.6,1.181]
[1755429409292,1.4428,4559.7,4559.6,1.4198]
[1755429410185,1.4428,4559.7,4559.3,3.2078]
[1755429410386,0.5866,4559.4,4559.3,3.7718]
[1755429410688,1.4428,4559.4,4559.3,24.1448]
[1755429410890,1.4428,4559.4,4559.3,24.7618]
[1755429411784,1.4428,4559.4,4559.3,25.0006]
[1755429412386,1.4428,4559.4,4559.3,24.7618]
[1755429412582,1.4428,4559.4,4559.3,3.8523]
[1755429412884,1.4428,4559.4,4559.3,3.2078]
[1755429412885,1.65678627,4559.4,4559.3,3.2078]
[1755429413587,1.65678627,4559.4,4559.1,20.373]
[1755429413588,1.03828627,4559.4,4559.1,20.373]
[1755429413793,1.4428,4559.2,4559.1,20.373]
[1755429414085,1.4428,4558.7,4558.6,23.75743259]
[1755429414291,1.4428,4558.7,4558.6,24.93843259]
[1755429414488,1.0368,4558.7,4558.6,25.17723259]
[1755429415090,1.2745,4558.7,4558.6,25.17723259]
[1755429415490,1.0368,4558.7,4558.6,25.17723259]
[1755429415693,0.6771,4558.7,4558.6,25.17723259]
[1755429416195,1.0368,4558.7,4558.6,25.17723259]
[1755429416583,1.4428,4558.7,4558.6,25.17723259]
[1755429418192,1.4428,4558.7,4558.6,24.93843259]
[1755429418586,1.4428,4558.7,4558.6,25.17723259]
[1755429420491,1.2051,4558.7,4558.6,25.17723259]
[1755429421288,1.4428,4558.7,4558.6,25.17723259]
[1755429426895,0.2377,4559.5,4558.6,3.2078]
[1755429427100,0.5866,4558.2,4558.1,21.3186]
[1755429427300,1.4428,4558.2,4558.1,20.938]
[1755429427501,1.4428,4558.2,4558.1,21.555]
[1755429428094,1.4428,4558.2,4558.1,21.7938]
[1755429429201,1.2051,4558.2,4558.1,1.181]
[1755429429397,0.6989,4558.0,4557.9,20.6114]
[1755429429601,0.6989,4558.0,4557.9,20.375]
[1755429429602,1.4428,4558.0,4557.9,20.375]
[1755429429998,1.4428,4557.9,4557.8,0.03534674]
[1755429431003,1.4428,4557.9,4557.8,0.27174674]
[1755429431297,1.4428,4557.9,4557.8,0.03534674]
[1755429431597,0.6771,4557.2,4557.1,0.09874593]
[1755429431798,4.6369,4557.2,4557.1,1.27974593]
[1755429432206,4.6588,4557.2,4557.1,0.09874593]
[1755429432405,4.6369,4557.2,4557.1,0.09874593]
[1755429432902,4.6588,4557.2,4556.2,20.6124]
[1755429433106,1.4291,4556.3,4556.2,21.557]
[1755429433294,0.5866,4556.3,4556.2,1.181]
[1755429433804,0.6771,4556.3,4556.2,1.4198]
[1755429434105,1.0368,4556.3,4556.2,1.4198]
[1755429434302,1.2608,4556.3,4556.2,1.4198]
[1755429434502,0.4297,4556.3,4556.2,1.4198]
[1755429435502,0.7894,4556.3,4556.2,1.4198]
[1755429435700,3.2078,4556.7,4556.6,0.3985]
[1755429435902,0.1709,4556.8,4556.7,0.8028]
[1755429436101,1.4291,4556.8,4556.7,0.8028]
[1755429436309,1.4291,4556.8,4556.7,0.564]
[1755429436605,1.4291,4556.8,4556.7,1.181]
[1755429437902,1.4291,4556.8,4556.7,0.8004]
[1755429438107,0.4188,4557.3,4557.2,0.584]
[1755429438307,1.19,4557.3,4557.2,1.4404]
[1755429438505,1.4143,4557.3,4557.2,1.4404]
[1755429439206,0.6556,4557.3,4557.2,1.4404]
[1755429439410,0.4059,4557.3,4557.2,1.4404]
[1755429439611,4.161,4557.9,4557.8,0.584]
[1755429439811,4.3853,4557.9,4557.8,1.1899]
[1755429440012,0.9532,4557.7,4557.2,0.364]
[1755429440208,0.584,4557.4,4557.3,0.4122]
[1755429440409,1.4143,4557.4,4557.3,0.4122]
[1755429440605,1.4143,4557.4,4557.3,0.6698]
[1755429440912,1.4143,4557.1,4557.0,0.2419]
[1755429441311,1.4143,4557.1,4557.0,1.0338]
[1755429441607,1.0248,4557.1,4557.0,1.4404]
[1755429442201,1.19,4557.1,4557.0,1.4404]
[1755429442407,1.4143,4557.1,4557.0,1.4404]
[1755429443802,1.4143,4557.1,4556.8,23.5888]
[1755429443803,0.3692,4557.3,4556.8,3.2078]
[1755429444007,1.4143,4556.9,4556.8,3.2078]
[1755429445113,1.4143,4556.6,4556.5,0.4122]
[1755429445312,1.4143,4556.6,4556.5,0.1703]
[1755429445502,1.4143,4556.6,4556.5,1.1899]
[1755429446516,1.4143,4556.6,4556.5,1.4404]
[1755429446813,1.4143,4556.6,4556.5,1.1899]
[1755429447316,1.4143,4556.6,4556.5,0.6698]
[1755429449208,1.4143,4556.6,4556.0,20.9879]
[1755429449209,0.2368,4556.5,4556.0,20.9879]
[1755429449415,3.2078,4556.9,4556.0,20.9879]
[1755429449416,1.4143,4556.1,4556.0,21.5719]
[1755429449615,1.4143,4556.1,4555.8,3.2078]
[1755429449911,1.0248,4555.9,4555.8,4.6482]
[1755429450111,0.4059,4555.9,4555.8,4.6482]
[1755429451713,0.3692,4556.2,4555.8,4.6482]
[1755429451911,0.6556,4556.2,4556.1,1.4404]
[1755429452210,1.0248,4556.2,4556.1,1.4404]
[1755429452409,1.19,4556.2,4556.1,1.1899]
[1755429452610,1.4143,4556.2,4556.1,1.4404]
[1755429452810,1.4143,4556.2,4556.1,1.1899]
[1755429453314,1.4143,4556.2,4556.1,0.4122]
[1755429453511,0.2243,4556.1,4555.8,3.2078]
[1755429453711,1.4143,4555.9,4555.6,0.2419]
[1755429453915,0.8303,4555.8,4555.7,0.4279]
[1755429454219,1.4143,4555.8,4555.7,1.1899]
[1755429456618,1.4143,4555.8,4555.7,1.4404]
[1755429458316,1.4143,4555.8,4555.7,1.1899]
[1755429460521,0.584,4555.5,4555.4,0.2419]
[1755429460725,1.6228765,4555.5,4555.4,0.2419]
[1755429461220,1.62284182,4555.5,4555.4,1.1899]
[1755429461417,0.20854182,4555.5,4555.4,1.1899]
[1755429461618,0.20854182,4555.5,4555.4,1.4404]
[1755429461826,0.9532,4555.9,4555.8,0.584]
[1755429462026,2.25133833,4555.9,4555.8,1.27580153]
[1755429463427,0.99093833,4555.9,4555.8,1.27580153]
[1755429463733,1.63810427,4555.9,4555.8,1.27580153]
[1755429464128,0.37770427,4555.9,4555.2,0.8564]
[1755429464333,1.4295,4555.9,4555.8,0.2505]